[Event "45th FIDE Olympiad 2024"]
[Site "Budapest"]
[Date "2024.09.16"]
[Round "6.27"]
[White "Farquhar, Abner"]
[Black "Naser Eldean, Ahmed"]
[Result "0-1"]
[WhiteElo "1678"]
[BlackElo "1981"]
[PlyCount "174"]
[EventDate "2024.09.05"]
[EventType "team-tourn"]
[EventCountry "HUN"]
[WhiteTeam "Antigua and Barbuda"]
[BlackTeam "Libya"]
[BlackTeamCountry "LBY"]
[TimeControl "40/5400+30:1800+30"]

1. d4 Nf6 2. Nf3 g6 3. Nc3 d5 4. Bf4 Bg7 5. e3 O-O 6. Be2 c5 7. O-O cxd4 8. exd4 Nc6 9. Ne5 Qb6 10. Nxc6 Qxc6 11. Be5 Bf5 12. Qd2 a6 13. a4 Rfd8 14. Rac1 Rac8 15. Rfd1 Qb6 16. b3 Qc6 17. Bxf6 Qxf6 18. Nb1 Qh4 19. g3 Qf6 20. c3 h5 21. Bd3 Bg4 22. Be2 Be6 23. Qe3 Kh7 24. f4 Bh6 25. Rc2 Rc6 26. b4 Bf5 27. Bd3 Rdc8 28. Bxf5 Qxf5 29. Qd3 Qf6 30. Nd2 Qf5 31. Nf3 Qxd3 32. Rxd3 f6 33. Nd2 Bf8 34. Nb1 Rc4 35. Re2 Kg7 36. Re6 R8c6 37. Rxc6 Rxc6 38. Kf1 e6 39. Nd2 Kf7 40. Ke2 a5 41. b5 Rc8 42. Rf3 b6 43. Kd3 Bd6 44. Rf1 Kg7 45. Re1 Kf7 46. Rc1 Ba3 47. Rc2 h4 48. c4 Bb4 49. cxd5 Rxc2 50. Kxc2 exd5 51. Nf3 hxg3 52. hxg3 Ke6 53. Nh4 Kf7 54. Ng2 Bd6 55. g4 Bc7 56. Ne3 Ke6 57. f5+ gxf5 58. gxf5+ Kd6 59. Kd3 Bd8 60. Ke2 Be7 61. Kf3 Bf8 62. Ng4 Kd7 63. Nxf6+ Kd6 64. Ng4 Bg7 65. f6 Bf8 66. Kf4 Ke6 67. Kg5 Bb4 68. Kg6 Bd6 69. Kg7 Kf5 70. Ne5 Ke4 71. Nc6 Kd3 72. f7 Kc3 73. f8=Q Bxf8+ 74. Kxf8 Kb3 75. Ke7 Kxa4 76. Na7 Kb3 77. Nc8 a4 78. Nxb6 a3 79. Nxd5 a2 80. Nc7 a1=Q 81. d5 Qa7 82. d6 Kc4 83. Kd8 Kc5 84. Kc8 Kxd6 85. Ne8+ Kc5 86. Kd8 Kxb5 87. Nd6+ Kc6 {0-} 0-1

[Event "45th FIDE Olympiad 2024"]
[Site "Budapest"]
[Date "2024.09.16"]
[Round "6.28"]
[White "Jones, Gawain C B"]
[Black "Brunello, Sabino"]
[Result "1-0"]
[ECO "E06"]
[WhiteElo "2646"]
[BlackElo "2511"]
[Annotator "TA"]
[PlyCount "115"]
[EventDate "2024.09.05"]
[EventType "team-tourn"]
[EventCountry "HUN"]
[SourceTitle "playchess.com"]
[Source "ChessBase"]
[SourceQuality "1"]
[WhiteTeam "England"]
[BlackTeam "Italy"]
[WhiteTeamCountry "ENG"]
[BlackTeamCountry "ITA"]
[TimeControl "40/5400+30:1800+30"]

{[%evp 12,115,14,8,18,7,22,19,25,18,15,16,31,21,35,34,29,37,35,34,42,21,41,26,38,10,14,13,29,45,104,92,131,124,127,147,136,133,122,44,133,125,122,109,139,110,123,118,102,112,110,118,108,123,113,119,122,112,161,159,164,163,163,160,157,56,70,0,167,133,139,133,129,132,121,150,143,142,138,120,189,191,217,197,397,387,396,397,415,411,461,461,502,488,441,398,363,372,557,557,1030,1110,29993,29994,29998,29999]} 1. Nf3 {[%emt 0:00:17]} Nf6 {[%emt 0:00:28]} 2. c4 {[%emt 0:00:08]} e6 {[%emt 0:00:16]} 3. g3 {[%emt 0:00:07]} d5 {[%emt 0:00:01]} 4. Bg2 {[%emt 0:00:05]} Be7 {[%emt 0:00:03]} 5. O-O {[%emt 0:00:08]} O-O {[%emt 0:00:06]} 6. d4 {[%emt 0:00:06]} c6 {[%emt 0:00:29]} 7. Nc3 {[%emt 0:00:27]} a5 {[%emt 0:10:23]} 8. Bf4 {[%emt 0:00:11]} dxc4 {[%emt 0:04:26]} 9. Ne5 {[%emt 0:01:27]} Nd5 {[%emt 0:00:28] The position is equal.} 10. Nxc4 {[%emt 0:00:14]} Nxf4 {[%emt 0:00:01]} 11. gxf4 {[%emt 0:00:12]} Nd7 {[%emt 0:00:04]} 12. e3 {[%emt 0:02:06]} Nf6 {[%emt 0:00:59]} 13. Rc1 {[%emt 0:03:10]} Bd7 {[%emt 0:01:38]} 14. Kh1 {[%emt 0:09:02]} Be8 {[%emt 0:00:53]} 15. Rg1 {[%emt 0:02:26]} Kh8 {[%emt 0:00:21]} 16. Qf3 {[%emt 0:04:09]} Rg8 {[%emt 0:01:04]} 17. Qh3 {[%emt 0:05:47]} Rc8 {[%emt 0:10:04]} 18. f5 {[%emt 0:06:47]} exf5 {[%emt 0:06:29]} 19. Qxf5 {[%emt 0:00:08]} Ra8 {[%emt 0:00:11]} 20. Rgd1 {[%emt 0:05:32]} g6 {[%emt 0:16:57]} (20... Bd7 $14 21. Ne5 Rf8 22. Nxd7 Qxd7 23. Qxd7 Nxd7) 21. Qe5 $16 {[%emt 0:01:53] aiming for d5.} Rg7 {[%emt 0:00:45]} 22. d5 {[%emt 0:01:54]} Nd7 {[%emt 0:00:11]} 23. Qf4 {[%emt 0:11:22]} (23. dxc6 Nxe5 24. cxb7 Nc6 $19) 23... Bg5 {[%emt 0:02:41]} 24. Qf3 {[%emt 0:05:42]} c5 {[%emt 0:00:55]} 25. Ne4 {[%emt 0:04:30]} (25. d6 $16) 25... Bh4 {[%emt 0:00:04]} ({Black should try} 25... Be7 $14) 26. Ned6 {[%emt 0:01:05] A dynamic duo of knights.} Rb8 {[%emt 0:01:36]} 27. Qh3 {[%emt 0:11:26] Threatens to win with Nxe8.} Bf6 {[%emt 0:02:42] [#]} 28. Nxa5 $1 {[%emt 0:01:55][%mdl 512] White has more active pieces.} Qxa5 {[%emt 0:03:27]} 29. Nxe8 {[%emt 0:00:38]} Rxe8 {[%emt 0:00:29]} 30. Qxd7 {[%emt 0:00:06]} Rd8 {[%emt 0:00:07]} 31. Qxb7 {[%emt 0:00:30]} Qxa2 {[%emt 0:00:04]} 32. Rd2 $36 {[%emt 0:06:35][%mdl 2048] White is really pushing.} Qa5 {[%emt 0:03:17] Wards off Qb6} 33. Rdc2 {[%emt 0:00:26]} Qb4 {[%emt 0:01:43]} 34. Qc7 {[%emt 0:00:38]} Qb8 {[%emt 0:00:46]} (34... Bh4 $16) 35. Qxc5 $18 {[%emt 0:03:56]} Be5 {[%emt 0:00:10]} 36. f4 {[%emt 0:02:27] Dodges f6} Bd6 {[%emt 0:00:18]} 37. Qd4 {[%emt 0:00:17]} f5 {[%emt 0:00:24]} 38. Qf6 {[%emt 0:04:29]} (38. Rc6 $16) 38... Rf8 $1 $14 {[%emt 0:00:57]} 39. Qd4 {[%emt 0:00:16]} (39. Qc3 $14) 39... Kg8 $2 {[%emt 0:00:39] White leaves nothing to chance now.} (39... Rd8 $1 $11) 40. Bf1 {[%emt 0:02:02]} Re7 {[%emt 0:11:10]} 41. Rc6 {[%emt 0:31:56][%cal Oc6d6] [#] Rxd6! is the strong threat.} Re4 {[%emt 0:37:20]} 42. Qb6 {[%emt 0:03:27]} Qxb6 {[%emt 0:02:15]} 43. Rxb6 {[%emt 0:00:04]} Rd8 {[%emt 0:00:35]} 44. Rcc6 {[%emt 0:00:00]} Bf8 {[%emt 0:00:00]} 45. Rb3 {[%emt 0:00:00]} Kf7 {[%emt 0:00:00]} (45... Kh8 $16) 46. Bc4 $18 {[%emt 0:00:00]} Bd6 {[%emt 0:00:00]} 47. Kg2 {[%emt 0:00:00]} Re7 $2 {[%emt 0:00:00]} (47... g5 {is a better defense.} 48. fxg5 Kg6) 48. Rbb6 {[%emt 0:00:00]} Red7 {[%emt 0:00:00]} 49. b4 {[%emt 0:00:00][%cal Bb2b4,Bb4b5,Bb5b6][%mdl 32]} Ke7 {[%emt 0:00:00]} 50. b5 {[%emt 0:00:00]} h6 {[%emt 0:00:00]} 51. Bd3 {[%emt 0:00:00]} Rf8 {[%emt 0:00:00]} 52. Ra6 {[%emt 0:00:00]} g5 {[%emt 0:00:00]} 53. fxg5 {[%emt 0:00:00]} hxg5 {[%emt 0:00:00]} 54. b6 {[%emt 0:00:00]} g4 {[%emt 0:00:00]} (54... Rb7 $142 55. Ra7 Rd7) 55. Ra7 {[%emt 0:00:00]} f4 {[%emt 0:00:00]} 56. exf4 {[%emt 0:00:00]} Bxf4 {[%emt 0:01:55]} 57. Re6+ {[%emt 0:00:33]} Kd8 {[%emt 0:00:01]} 58. Ra8+ {[%emt 0:00:08] Weighted Error Value: White=0.11 (very precise) /Black=0.36.  Loses game:     	---       	Black=1      Mistake:       	White=3     	Black=6      Inaccurate:     	White=1     	Black=3      OK:         	White=25    	Black=16     Best:        	White=5     	Black=4      Strong:       	---       	Black=1} 1-0

[Event "45th FIDE Olympiad 2024"]
[Site "Budapest"]
[Date "2024.09.16"]
[Round "6.28"]
[White "Elshaafi, Ali"]
[Black "Solomon, Jonathan"]
[Result "1-0"]
[WhiteElo "1984"]
[BlackElo "1536"]
[PlyCount "97"]
[EventDate "2024.09.05"]
[EventType "team-tourn"]
[EventCountry "HUN"]
[WhiteTeam "Libya"]
[BlackTeam "Antigua and Barbuda"]
[WhiteTeamCountry "LBY"]
[TimeControl "40/5400+30:1800+30"]

1. e4 c6 2. d4 d5 3. exd5 cxd5 4. Bd3 Nf6 5. h3 e6 6. Nf3 Nc6 7. c3 Be7 8. O-O O-O 9. Re1 b6 10. Bg5 a5 11. Nbd2 Ba6 12. Bb1 Rc8 13. Qc2 Nb4 14. Qd1 Nd3 15. Re3 Nxb2 16. Qc2 Nd3 17. Bxf6 Bxf6 18. a4 g6 19. Rxd3 Bxd3 20. Qxd3 Qc7 21. Ra3 Rfd8 22. Qe3 Bg7 23. Bd3 Rd6 24. Ba6 Ra8 25. Bb5 Rc8 26. h4 Qe7 27. h5 Qf8 28. hxg6 hxg6 29. Ne5 Rdd8 30. Rb3 Qd6 31. f4 Rc7 32. Qh3 Bxe5 33. fxe5 Qe7 34. Qh6 Qf8 35. Qg5 Qe7 36. Qxe7 Rxe7 37. Ba6 Rb8 38. c4 dxc4 39. Nxc4 Rd7 40. Nd6 Rc7 41. Bc4 Kg7 42. Kf2 Kf8 43. Rh3 Kg7 44. Ke2 Rd8 45. Kd2 Rxd6 46. exd6 Rxc4 47. d7 Rxa4 48. d8=Q Ra2+ 49. Kc1 1-0

[Event "45th FIDE Olympiad 2024"]
[Site "Budapest"]
[Date "2024.09.16"]
[Round "6.29"]
[White "Duda, Jan-Krzysztof"]
[Black "Dragnev, Valentin"]
[Result "1/2-1/2"]
[ECO "E45"]
[WhiteElo "2732"]
[BlackElo "2556"]
[Annotator "TA"]
[PlyCount "81"]
[EventDate "2024.09.05"]
[EventType "team-tourn"]
[EventCountry "HUN"]
[SourceTitle "playchess.com"]
[Source "ChessBase"]
[SourceQuality "1"]
[WhiteTeam "Poland"]
[BlackTeam "Austria"]
[WhiteTeamCountry "POL"]
[BlackTeamCountry "AUT"]
[TimeControl "40/5400+30:1800+30"]

{[%evp 16,81,0,0,0,2,55,36,67,63,79,84,71,81,68,73,86,66,126,94,132,87,109,100,120,93,87,89,88,74,88,69,85,75,79,80,104,85,79,73,132,127,121,129,112,116,109,112,231,225,222,208,535,595,563,555,507,0,0,0,0,0,0,0,0,0,0,0]} 1. d4 {[%emt 0:00:04]} Nf6 {[%emt 0:00:13]} 2. c4 {[%emt 0:00:06]} e6 {[%emt 0:00:16]} 3. Nc3 {[%emt 0:00:09]} Bb4 {[%emt 0:00:22]} 4. e3 {[%emt 0:00:10]} b6 {[%emt 0:02:26]} 5. Nge2 {[%emt 0:04:41]} Ba6 {[%emt 0:00:27]} 6. a3 {[%emt 0:01:36]} Bxc3+ {[%emt 0:03:33]} 7. Nxc3 {[%emt 0:00:07]} d5 {[%emt 0:00:41]} 8. b3 {[%emt 0:03:17]} O-O {[%emt 0:01:40]} 9. a4 {[%emt 0:16:01]} c5 {[%emt 0:25:01]} 10. Ba3 {[%emt 0:00:52]} Nbd7 {[%emt 0:02:24]} ({Better is} 10... Nc6 $11) 11. Be2 {[%emt 0:04:09]} dxc4 {[%emt 0:03:32] White is slightly better.} 12. bxc4 {[%emt 0:00:33]} Bb7 {[%emt 0:00:24]} 13. O-O {[%emt 0:07:42]} Ne4 {[%emt 0:05:25]} 14. Nxe4 {[%emt 0:02:09]} Bxe4 {[%emt 0:00:02]} 15. f3 {[%emt 0:00:30]} Bb7 {[%emt 0:00:48]} 16. e4 {[%emt 0:01:21][%cal Be3e4,Be4d5][%mdl 32]} Re8 {[%emt 0:06:33]} (16... cxd4 $14 17. Qxd4 Re8) 17. d5 $16 {[%emt 0:02:16]} exd5 {[%emt 0:00:06]} 18. exd5 {[%emt 0:01:16]} Qh4 {[%emt 0:03:12]} 19. Bb2 {[%emt 0:04:59]} Re7 {[%emt 0:05:26]} 20. Qd2 {[%emt 0:11:43]} Rae8 {[%emt 0:01:06]} 21. Rf2 {[%emt 0:01:06]} Ne5 {[%emt 0:05:14]} 22. Qc3 {[%emt 0:03:02] f4 is the strong threat.} f6 {[%emt 0:01:07][%cal Oe5g4]} 23. Bf1 {[%emt 0:00:35]} Ng6 $1 {[%emt 0:06:47]} 24. a5 {[%emt 0:04:42]} Nf4 {[%emt 0:02:43]} 25. Qd2 {[%emt 0:01:25] Inhibits Re2.} Bc8 {[%emt 0:08:10]} 26. axb6 {[%emt 0:00:57]} axb6 {[%emt 0:00:06]} 27. Ra8 {[%emt 0:05:07] And now d6 would win.} Bd7 {[%emt 0:00:32] [#]} (27... Qg5 $142 28. Kh1 Bf5 29. Rxe8+ Rxe8) 28. Rxe8+ $1 {[%emt 0:01:26]} Rxe8 {[%emt 0:00:13] [#]} 29. Bc1 $1 {[%emt 0:00:10]} Ng6 {[%emt 0:00:32]} 30. Qb2 $36 {[%emt 0:01:07][%mdl 2048] White is on the roll.} Re1 {[%emt 0:11:01]} 31. Bd2 {[%emt 0:08:58]} Rd1 {[%emt 0:03:42]} (31... Rxf1+ $16 32. Rxf1 Qxc4) 32. f4 $18 {[%emt 0:00:19]} (32. Qxb6 Qxc4 33. Qa5 h6 $17 (33... Qxd5 34. Be3 $15)) 32... Qg4 {[%emt 0:01:28]} 33. Qxb6 {[%emt 0:01:05][%cal Oh2h3] aiming for h3!} Nh4 $2 {[%emt 0:00:47]} (33... h5 34. Qb8+ (34. Qxc5 Qf5 $18) 34... Kh7) 34. Qd8+ {[%emt 0:10:39]} (34. Qxc5 Rxd2 35. Qb4 Rxf2 36. Qb8+ Kf7 37. Kxf2 Ng6 $17) 34... Kf7 {[%emt 0:00:01]} 35. h3 {[%emt 0:00:09]} Rxf1+ {[%emt 0:00:52]} 36. Kh2 $2 {[%emt 0:00:45]} ({Only move:} 36. Kxf1 $18 Qd1+ 37. Be1 Bxh3 38. Qc7+ (38. gxh3 Qd3+ 39. Kg1 Qg3+ 40. Kh1 Qxh3+ 41. Kg1 Qg3+ 42. Kf1 Qd3+ 43. Kg1 Qg3+ 44. Kf1 Qd3+ 45. Kg1 Qg3+ $11) 38... Kg8 39. Qe7 (39. gxh3 Qd3+ 40. Re2 Qxh3+ 41. Kg1 Qg4+ 42. Kf2 Qf3+ 43. Kg1 Qg4+ 44. Kf2 Qf3+ 45. Kg1 Qg4+ $11) 39... Bxg2+ 40. Rxg2 Qf3+ 41. Rf2 Qd3+ 42. Qe2 Qh3+ 43. Kg1) 36... Qxh3+ $11 {[%emt 0:01:03] The position is equal.} 37. gxh3 {[%emt 0:00:06]} Rxf2+ {[%emt 0:00:06]} 38. Kg3 {[%emt 0:03:02] Dancing on a razor blade.} (38. Kg1 $5 Rg2+ $8 39. Kh1 Bxh3 40. f5 Bxf5 (40... Rxd2 41. Qd7+ Kf8 42. Qd8+ Kf7 43. Qd7+ Kf8 44. Qd8+ Kf7 $11) 41. Be3 $11) 38... Rf3+ {[%emt 0:00:14]} 39. Kh2 $1 {[%emt 0:00:01]} Rf2+ {[%emt 0:00:15]} 40. Kg3 {[%emt 0:01:23]} (40. Kg1 $5 Rg2+ $8 41. Kh1 Bxh3 42. f5 Bxf5 (42... Rxd2 43. Qd7+ Kf8 44. Qd8+ Kf7 45. Qd7+ Kf8 46. Qc8+ Ke7 47. Qc7+ Ke8 48. Qc6+ Kf8 49. Qxc5+ Kg8 50. Qc8+ Kf7 51. Qc7+ Ke8 52. Qc8+ Kf7 53. Qd7+ Kf8 54. Qc8+ Kf7 $11) 43. Be3 $11) 40... Rf3+ {[%emt 0:00:43]} 41. Kh2 $1 {[%emt 0:30:01] Weighted Error Value: White=0.19 (very precise) /Black=0.31.  Missed win:     	White=1     	---        Mistake:       	---       	Black=5      Inaccurate:     	White=1     	Black=2      OK:         	White=10    	Black=9      Best:        	White=4     	Black=4      Strong:       	White=4     	Black=1} 1/2-1/2

[Event "45th FIDE Olympiad 2024"]
[Site "Budapest"]
[Date "2024.09.16"]
[Round "6.29"]
[White "Celis, Joel"]
[Black "Colindres, Daniel"]
[Result "0-1"]
[WhiteElo "1929"]
[BlackElo "2079"]
[PlyCount "78"]
[EventDate "2024.09.05"]
[EventType "team-tourn"]
[EventCountry "HUN"]
[WhiteTeam "Macau"]
[BlackTeam "Honduras"]
[WhiteTeamCountry "MAC"]
[BlackTeamCountry "HON"]
[TimeControl "40/5400+30:1800+30"]

1. e4 Nf6 2. e5 Nd5 3. d4 d6 4. exd6 cxd6 5. c4 Nb6 6. Nf3 g6 7. Nc3 Bg7 8. h3 O-O 9. Bg5 Nc6 10. Qd2 d5 11. c5 Nc4 12. Bxc4 dxc4 13. Rd1 Bf5 14. O-O Bd3 15. Rfe1 Nxd4 16. Bxe7 Nxf3+ 17. gxf3 Qd7 18. Bxf8 Rxf8 19. Kg2 Qf5 20. Ne4 Be5 21. Qh6 Bg7 22. Qh4 Bxb2 23. Nd6 Qxc5 24. Qf4 b5 25. Re8 Qd5 26. Rde1 g5 27. R8e5 Bxe5 28. Qxg5+ Bg6 29. Qxe5 Qxe5 30. Rxe5 a6 31. a4 Rd8 32. Nb7 Rd7 33. Nc5 Rd6 34. axb5 axb5 35. Re8+ Kg7 36. Rb8 Rd5 37. Ne4 Bxe4 38. fxe4 Rc5 39. Kf1 c3 {0-} 0-1

[Event "45th FIDE Olympiad 2024"]
[Site "Budapest"]
[Date "2024.09.16"]
[Round "6.30"]
[White "Ragger, Markus"]
[Black "Wojtaszek, Radoslaw"]
[Result "1/2-1/2"]
[ECO "B51"]
[WhiteElo "2601"]
[BlackElo "2681"]
[Annotator "TA"]
[PlyCount "60"]
[EventDate "2024.09.05"]
[EventType "team-tourn"]
[EventCountry "HUN"]
[SourceTitle "playchess.com"]
[Source "ChessBase"]
[SourceQuality "1"]
[WhiteTeam "Austria"]
[BlackTeam "Poland"]
[WhiteTeamCountry "AUT"]
[BlackTeamCountry "POL"]
[TimeControl "40/5400+30:1800+30"]

{[%evp 10,60,15,-6,0,0,4,21,4,10,30,17,30,29,27,19,14,12,29,23,22,33,50,37,50,35,81,59,68,38,37,47,43,13,13,13,13,13,14,13,13,13,13,13,16,0,13,0,13,0,20,0,20]} 1. e4 {[%emt 0:00:03]} c5 {[%emt 0:00:04]} 2. Nf3 {[%emt 0:00:07]} d6 {[%emt 0:00:04]} 3. Bb5+ {[%emt 0:00:05]} Nd7 {[%emt 0:00:07]} 4. O-O {[%emt 0:00:17]} a6 {[%emt 0:00:06]} 5. Bxd7+ {[%emt 0:00:10]} Bxd7 {[%emt 0:00:13]} 6. c3 {[%emt 0:00:02]} e6 {[%emt 0:07:36]} 7. d4 {[%emt 0:02:03]} Ne7 {[%emt 0:00:05]} 8. dxc5 {[%emt 0:09:46]} dxc5 {[%emt 0:00:06]} 9. Ne5 {[%emt 0:00:37]} Ng6 {[%emt 0:05:03]} 10. Qxd7+ {[%emt 0:15:37]} Qxd7 {[%emt 0:00:59]} 11. Nxd7 {[%emt 0:00:02]} Kxd7 {[%emt 0:00:07]} 12. f4 {[%emt 0:00:29]} Bd6 {[%emt 0:14:33]} 13. Be3 {[%emt 0:05:15]} Kc6 {[%emt 0:02:17]} 14. Nd2 {[%emt 0:02:48]} Rad8 {[%emt 0:05:22]} 15. g3 {[%emt 0:04:56][%cal Ob2b4]} f5 {[%emt 0:09:15]} 16. Rad1 {[%emt 0:18:14]} Rhf8 {[%emt 0:03:19]} 17. e5 {[%emt 0:12:13]} Be7 {[%emt 0:01:09]} (17... Bc7 $14) 18. Kf2 $16 {[%emt 0:02:22][%cal Ob2b4]} Rd5 {[%emt 0:01:55]} 19. c4 {[%emt 0:00:46]} Rd7 {[%emt 0:00:06]} 20. Ke2 {[%emt 0:01:41]} Rfd8 {[%emt 0:00:05]} 21. Nf3 {[%emt 0:00:26]} Rxd1 {[%emt 0:00:08] The position is equal.} 22. Rxd1 {[%emt 0:00:02]} Rxd1 {[%emt 0:00:04]} 23. Kxd1 $11 {[%emt 0:00:03][%mdl 4096] Endgame. KBN-KBN} Nh8 {[%emt 0:00:38]} 24. Ke2 {[%emt 0:00:41]} Nf7 {[%emt 0:00:13]} 25. Kd3 {[%emt 0:00:33]} Kd7 {[%emt 0:00:06]} 26. Kc3 {[%emt 0:00:22]} Kc6 {[%emt 0:00:12]} 27. Kd3 {[%emt 0:00:01]} Kd7 {[%emt 0:00:05]} 28. Kc3 {[%emt 0:00:05]} Kc6 {[%emt 0:00:02]} 29. Kd3 {[%emt 0:00:04]} Kd7 {[%emt 0:00:04]} 30. Kc3 {[%emt 0:00:04]} Kc6 {[%emt 0:00:07] Weighted Error Value: White=0.09 (flawless) /Black=0.06 (flawless) .  Mistake:       	---       	Black=1      Inaccurate:     	White=2     	---        OK:         	White=5     	Black=7      Best:        	---       	Black=1} 1/2-1/2

[Event "45th FIDE Olympiad 2024"]
[Site "Budapest"]
[Date "2024.09.16"]
[Round "6.30"]
[White "Gavarrete, Joel"]
[Black "Mak, Tong Kuan"]
[Result "0-1"]
[WhiteElo "2059"]
[BlackElo "1902"]
[PlyCount "86"]
[EventDate "2024.09.05"]
[EventType "team-tourn"]
[EventCountry "HUN"]
[WhiteTeam "Honduras"]
[BlackTeam "Macau"]
[WhiteTeamCountry "HON"]
[BlackTeamCountry "MAC"]
[TimeControl "40/5400+30:1800+30"]

1. e4 c6 2. d4 d5 3. exd5 cxd5 4. Bd3 Nf6 5. c3 Nc6 6. Bf4 Bg4 7. Qb3 Qd7 8. Nd2 e6 9. Ngf3 a6 10. Ne5 Nxe5 11. dxe5 Ng8 12. c4 Bc5 13. cxd5 exd5 14. O-O Ne7 15. Kh1 Rc8 16. Bg5 O-O 17. f3 Be6 18. f4 Nf5 19. Nf3 Ne3 20. Qc3 Nxf1 21. Rxf1 h6 22. Bh4 Bf5 23. Qc2 Bxd3 24. Qxd3 Qb5 25. Qb1 Be3 26. Be7 Rfe8 27. Bd6 Qxf1+ 28. Qxf1 Rc1 29. Qxc1 Bxc1 30. g3 Bxb2 31. Nh4 Rc8 32. Kg2 d4 33. Kf3 Rc2 34. Nf5 Rxh2 35. Ne7+ Kh7 36. Ke4 Re2+ 37. Kd3 Re3+ 38. Kc2 Bc3 39. f5 Rxg3 40. e6 Rg2+ 41. Kd3 fxe6 42. fxe6 Rd2+ 43. Kc4 Re2 {0-} 0-1